Workbook

Sheet Instructivo
A1: CRITERIO DE PRIORIZACIÓN DE TRÁMITES ADMINISTRATIVOS
A2: Instructivo
A3: Consideraciones generales
A5: En las hojas “COSTO DE ADMINISTRACIÓN PÚBLICA”y “RESUMEN” para añadir más trámites y que apliquen las fórmulas, se deberá seleccionar la primera fila y copiarla una por cada trámite de la entidad
A7: Todas las hojas tienen columnas de color celeste, en las cuales NO deben ingresar valores ya que contienen fórmulas.
A8: Para la carga en GOB.EC. La institución debe recordar que el peso máximo del archivo es de 2 MB.
A9: Esquema de puntuación
A10: Para priorizar un trámite, se realizará un análisis de criterios básicos y adicionales basado en información que disponen las instituciones sujetas a esta norma técnica. Cada criterio será puntuado según los lineamientos presentes en esta norma.
A11: a) Demanda Anual
A12: Considerará el volumen o frecuencia de las solicitudes que ingresan al año a cada institución para la gestión de un trámite en particular.
A13: La identificación del volumen anual de los trámites se realizará a través de sus registros de transacciones y/o el número de visitas de consulta de información realizadas a través de páginas web institucionales.
A14: Para realizar el registro realice lo siguiente:
A15: 1.- Seleccione la hoja DEMANDA ANUAL
A16: 2.- Ingrese los trámites de la institución registrando el identificador y nombre en las columnas respectivas.
A17: 3.- Para cada trámite debe especificar en la columna DEMANDA ANUAL el volumen o frecuencia anual, de acuerdo a lo mencionado anteriormente.
A18: 4.- Una vez terminado el llenado solicitado presione el botón PUNTUACIÓN, se ordenara de menor a mayor.
A19: 5.- Usted visualizará el ordenamiento de los trámites ingresados de acuerdo al número de volumen o frecuencia anual.
A20: 6.- Así mismo, usted visualizará el puntaje obtenido en la columna PUNTUACIÓN de acuerdo al grupo obtenido por cada trámite de acuerdo al número de volumen o frecuencia anual cosiderando lo siguiente: ** Primer grupo (trámites con menor demanda no incluye los trámites con demanda 0 ) = 3 ** Segundo grupo (trámites con demanda intermedia) = 6 ** Tercer grupo (trámites con mayor demanda) = 10
A21: Cada vez que requiera actualizar el puntaje presionando el botón puntuación, debe verificar que la celda de la columna puntaje se encuentren vacías, es decir, se debe borrar cualquier valor de puntaje obtenido previamente.
A22: b) Volumen de quejas asociadas a un trámite:
A23: Considerará la cantidad de quejas recibidas en relación a un trámite durante un año. Estas quejas deberán estar documentadas en medios físicos y/o digitales.
A24: Para determinar la puntuación, se colocará en una tabla todos los trámites con sus correspondientes quejas ordenándose de menor a mayor. Se dividirá en 2 partes en los que cada grupo contenga la misma cantidad de trámites.
A25: Para realizar el registro realice lo siguiente:
A26: 1.- Seleccione la hoja VOLUMEN DE QUEJAS
A27: 2.- Ingrese los trámites de la institución registrando el identificador y nombre en las columnas respectivas. Si usted requiere de acuerdo al número de trámites copie filas adicionales que estén dentro del cuadro
A28: 3.- Para cada trámite debe especificar en la columna VOLUMEN QUEJAS el número de quejas anual, de acuerdo a lo mencionado anteriormente.
A29: 4.- Una vez terminado el llenado solicitado presione el botón PUNTUACIÓN.
A30: 5.- Usted visualizará el ordenamiento de los trámites ingresados de acuerdo al número de volumen o frecuencia anual.
A31: 6.- Así mismo, usted visualizará el puntaje obtenido en la columna PUNTUACIÓN de acuerdo al grupo obtenido por cada trámite de acuerdo al número de volumen o frecuencia anual cosiderando lo siguiente: La puntuación se basará en los siguientes grupos: ** Primer grupo (trámites con menor cantidad de quejas, no incluye los trámites con queja 0 ) = 4 ** Segundo grupo (trámites con mayor porcentaje de quejas) = 10
A32: El valor del volumen de quejas no debe ser superior al valor del volumen de la demana, no le permitirá registrar un valor.
A33: c) Costo para la administración pública:
A34: En cada trámite, basado en un caso estándar, se deberá estimar el costo incurrido en el costo de personal y recursos necesarios para su atención desde que el administrado entregó todos los requisitos hasta que la institución entregue el producto, respuesta o servicio requerido en el trámite. Se considerará:
A35: • Costo de personal:
A36: Costo del personal para atender el trámite, se excluyen actividades realizadas automáticamente o que dependen del administrado. El tiempo deberá considerar únicamente el tiempo efectivo de trabajo del personal, no debe considerar el tiempo de espera o de movimiento.
A37: • Costo de recursos:
A38: Se deberá considerar el costo directo en el que la institución debe incurrir para atender un trámite. Se debe considerar los insumos o materia prima necesaria u cualquier otro que la institución considere pertinente.
A39: Para realizar el registro realice lo siguiente:
A40: 1.- Seleccione la hoja COSTO ADMINISTRACIÓN PÚBLICA
A41: 2.- Ingrese los trámites de la institución registrando el identificador y nombre en las columnas respectivas. Si usted requiere de acuerdo al número de trámites copie filas adicionales que estén dentro del cuadro
A42: 3.- Para calcular el tiempo de las actividades, utilizar la hoja AUXILIAR COSTO ADMINISTRACIÓN donde deberá listar todas las actividades que realiza la institución en un caso estándar y asignar el tiempo mínimo que toma cada actvidad (en horas). El tiempo total de las actividades, deberá ingresar en la correspondiente celda de la hoja COSTO ADMINISTRACIÓN PÚBLICA
A43: 4.- En función de la información registrada en el paso 3, la matriz entregará el costo del personal
A44: 5.- Completar la columna "Costo recursos", en la cual ingresará el costo directo en el que incurre la institución para entregar el trámite. En este valor se considerarán los valores correspondientes a insumos y/o materia prima mínimos que se invierten por cada trámite (no se considera mano de obra)
A45: 6.- La columna "Costo para la adm. pública" mostrará el costto de este criterio para cada trámite
A46: 7,- Para que la fórmula funcione debe arrastrar hacia abajo al último de los támites ingresados, no copiar
A47: 7.- Una vez que disponga del Costo para la administración pública, presionar el botón "GENERAR".
A48: 8. Visualizar la hoja “RESUMEN DE COSTO AP” en la que va a encontrar copiada las celdas necesarias para el ordenamiento y puntuación de las mismas al presionar el botón “PUNTUACIÓN”
A50: d) Tiempo de respuesta:
A51: Considerará los tiempos que a las instituciones les toma dar respuesta a un trámite desde que reciben la solicitud del administrado hasta la finalización del mismo. Para la definición del tiempo se considerará un caso estándar.
A52: Para determinar la puntuación, se colocará en una tabla todos los trámites con el tiempo de respuesta, ordenándose de menor a mayor. Se dividirá en 4 grupos, en los que cada uno contenga la misma cantidad de trámites.
A53: Para realizar el registro realice lo siguiente:
A54: 1.- Seleccione la hoja TIEMPO DE RESPUESTA
A55: 2.- Ingrese los trámites de la institución registrando el identificador y nombre en las columnas respectivas. Si usted requiere de acuerdo al número de trámites copie filas adicionales que estén dentro del cuadro
A56: 3.- Para cada trámite debe especificar en la columna TIEMPO RESPUESTA el tiempo, de acuerdo a lo mencionado anteriormente.
A57: 4.- Una vez terminado el llenado solicitado presione el botón PUNTUACIÓN.
A58: 5.- Usted visualizará el ordenamiento de los trámites ingresados de acuerdo al número de volumen o frecuencia anual.
A59: 6.- Así mismo, usted visualizará el puntaje obtenido en la columna PUNTUACIÓN de acuerdo al grupo obtenido por cada trámite de acuerdo al número de volumen o frecuencia anual cosiderando lo siguiente: La puntuación considera lo siguiente: ** Primer grupo (menor o igual a 40 horas laboralres) = 0 ** Segundo grupo mayor 40 horas laboralres) = 30
A60: e) Canal de atención:
A61: Considerará los canales de atención a través de los cuales el administrado puede iniciar el trámite.
A62: Para realizar el registro realice lo siguiente:
A63: 1.- Seleccione la hoja CANAL ATENCIÓN
A64: 2.- Ingrese los trámites de la institución registrando el identificador y nombre en las columnas respectivas. Si usted requiere de acuerdo al número de trámites copie filas adicionales que estén dentro del cuadro
A65: 3.- Para cada trámite debe seleccionar el canal de atención del trámite en la columna CANAL ATENCIÓN, que pueden ser: El trámite se puede completar totalmente en línea: Se considera trámite totalmente en línea cuando el administrado no requiere realizar ninguna interacción presencial con la institución = 0 El trámite no se puede completar totalmente en línea: Se considera este caso, cuando el trámite incluye al menos una actividad, incluido mecanismos de pago, en la que el administrado deba acudir presencialmente a la institución, para la realización de dicho trámite. Los trámites presenciales se consideran dentro de esta categoría = 10
A66: 4.- De acuerdo a la selección usted obtendrá la puntuación del trámite que se visualizará en la columna PUNTUACIÓN.
A68: f) Resumen
A69: En esta hoja deberá consolidar todas las puntuaciones obtenidas para cada trámite en los criterios a) hasta e). Adicionalmente deberá analizar los criterios adicionales que dispone la norma técnica, para estos últimos solamente deberá seleccionar en la celda correspondiente y la matriz asignará la puntuación adicional. Los criterios que deberá considerar son: - NECESIDADES CIUDADANAS: Si la institución ha implementado mecanismos para identificar necesidades ciudadanas respecto al trámite, seleccionar "SI", caso contrario, seleccionar "NO" - SUSCEPTIBILIDAD A CORRUPCIÓN: Si la institución dispone de información documentada sobre presuntos actos de corrupción, seleccionar "SI", caso contrario, seleccionar "NO" - VOLUMEN DE DEVOLUCIONES: Si la institución posee documentación sobre devoluciones del trámite en una cantidad significativa, seleccionar "SI", caso contrario, seleccionar "NO" Para que funcione la lista depelgable debe arrastrar la lista y la puntuación hacia abajo al último de los támites ingresados, no copiar
A70: En la columna puntaje total se realizará la sumatoria de los valores de los criterios básicos y adicionales. Este valor deberá registrarse en la plataforma GOB.EC

Sheet DEMANDA ANUAL
A1: PRIORIZACIÓN DE TRÁMITES ADMINISTRATIVOS
A2: DEMANDA ANUAL
A4: IDENTIFICADOR | B4: TRÁMITE | C4: DEMANDA ANUAL | D4: PUNTAJE
A5: IEPS-016-01-01 | B5: Cofinanciamiento de Planes de Negocios para actores de la Economía Popular y Solidaria | C5: 0 | D5: 0
A6: IEPS-012-01-01 | B6: Atención especializada de información en Economía Popular y Solidaria. | C6: 11 | D6: 3
A7: IEPS-005-01-01 | B7: Asesoramiento en el Proceso de compra pública inclusiva a Instituciones Públicas | C7: 15 | D7: 3
A8: IEPS-017-01-01 | B8: Asistencia técnica en procesos comerciales | C8: 92 | D8: 6
A9: IEPS-003-01-01 | B9: Asesoría para la elaboración del Plan de Negocio EPS solidarios | C9: 140 | D9: 6
A10: IEPS-007-01-01 | B10: Participación en eventos de comercialización ( Ferias / Ruedas de Negocios) | C10: 762 | D10: 10
A11: IEPS-006-01-01 | B11: Asesoramiento en el Proceso de Compra Pública Inclusiva a Organizaciones EPS y/o Unidades EP. | C11: 1789 | D11: 10
A12: IEPS-009-01-01 | B12: Fortalecimiento organizativo, administrativo y/o técnico a los actores de la EPS. | C12: 3953 | D12: 10
A14: Fecha: 15 de enero de 2021

Sheet VOLUMEN DE QUEJAS
A1: PRIORIZACIÓN DE TRÁMITES ADMINISTRATIVOS
A2: VOLUMEN DE QUEJAS
A4: IDENTIFICADOR | B4: TRÁMITE | C4: VOLUMEN DEMANDA | D4: VOLUMEN DE QUEJAS | E4: PORCENTAJE | F4: PUNTUACIÓN
A5: IEPS-016-01-01 | B5: Cofinanciamiento de Planes de Negocios para actores de la Economía Popular y Solidaria | C5: 0 | D5: 0 | E5: 0 | F5: 0
A6: IEPS-012-01-01 | B6: Atención especializada de información en Economía Popular y Solidaria. | C6: 11 | D6: 0 | E6: 0 | F6: 0
A7: IEPS-005-01-01 | B7: Asesoramiento en el Proceso de compra pública inclusiva a Instituciones Públicas | C7: 15 | D7: 0 | E7: 0 | F7: 0
A8: IEPS-017-01-01 | B8: Asistencia técnica en procesos comerciales | C8: 92 | D8: 0 | E8: 0 | F8: 0
A9: IEPS-003-01-01 | B9: Asesoría para la elaboración del Plan de Negocio EPS solidarios | C9: 140 | D9: 0 | E9: 0 | F9: 0
A10: IEPS-007-01-01 | B10: Participación en eventos de comercialización ( Ferias / Ruedas de Negocios) | C10: 762 | D10: 0 | E10: 0 | F10: 0
A11: IEPS-006-01-01 | B11: Asesoramiento en el Proceso de Compra Pública Inclusiva a Organizaciones EPS y/o Unidades EP. | C11: 1789 | D11: 0 | E11: 0 | F11: 0
A12: IEPS-009-01-01 | B12: Fortalecimiento organizativo, administrativo y/o técnico a los actores de la EPS. | C12: 3953 | D12: 0 | E12: 0 | F12: 0

Sheet COSTO ADMINISTRACIÓN PÚBLICA
A1: PRIORIZACIÓN DE TRÁMITES ADMINISTRATIVOS
A2: COSTOS PARA LA ADMINISTRACIÓN PÚBLICA
A4: IDENTIFICADOR | B4: TRÁMITE | C4: INSUMOS PARA COSTO | F4: COSTO PARA LA ADM. PÚBLICA | H4: SBU | I4: 400
C5: TIEMPO (HORAS) | D5: COSTO PERSONAL | E5: COSTO RECURSOS
A6: IEPS-016-01-01 | B6: Cofinanciamiento de Planes de Negocios para actores de la Economía Popular y Solidaria | C6: 155.5 | D6: =C6*$I$4/160 -> 388.75 | E6: 0 | F6: =D6+E6 -> 388.75
A7: IEPS-012-01-01 | B7: Atención especializada de información en Economía Popular y Solidaria. | C7: 8.84 | D7: =C7*$I$4/160 -> 22.1 | E7: 0 | F7: =D7+E7 -> 22.1
A8: IEPS-005-01-01 | B8: Asesoramiento en el Proceso de compra pública inclusiva a Instituciones Públicas | C8: 6.25 | D8: 15.625 | E8: 0 | F8: 15.625
A9: IEPS-017-01-01 | B9: Asistencia técnica en procesos comerciales | C9: 31.046875 | D9: 77.6171875 | E9: 0 | F9: 77.6171875
A10: IEPS-003-01-01 | B10: Asesoría para la elaboración del Plan de Negocio EPS solidarios | C10: 28.91 | D10: 72.275 | E10: 0 | F10: 72.275
A11: IEPS-007-01-01 | B11: Participación en eventos de comercialización ( Ferias / Ruedas de Negocios) | C11: 20.81770833 | D11: =C11*$I$4/160 -> 52.04427083 | E11: 0 | F11: =D11+E11 -> 52.04427083
A12: IEPS-006-01-01 | B12: Asesoramiento en el Proceso de Compra Pública Inclusiva a Organizaciones EPS y/o Unidades EP. | C12: 5.5 | D12: 13.75 | E12: 0 | F12: 13.75
A13: IEPS-009-01-01 | B13: Fortalecimiento organizativo, administrativo y/o técnico a los actores de la EPS. | C13: 36.67 | D13: 91.675 | E13: 0 | F13: 91.675

Sheet RESUMEN DE COSTOS AP
A1: PRIORIZACIÓN DE TRÁMITES ADMINISTRATIVOS
A2: COSTOS PARA LA ADMINISTRACIÓN PÚBLICA
A4: IDENTIFICADOR | B4: TRÁMITE | C4: COSTO PARA LA ADM. PÚBLICA | D4: PUNTUACIÓN
A5: IEPS-006-01-01 | B5: Asesoramiento en el Proceso de Compra Pública Inclusiva a Organizaciones EPS y/o Unidades EP. | C5: 13.75 | D5: 5
A6: IEPS-005-01-01 | B6: Asesoramiento en el Proceso de compra pública inclusiva a Instituciones Públicas | C6: 15.625 | D6: 5
A7: IEPS-012-01-01 | B7: Atención especializada de información en Economía Popular y Solidaria. | C7: 22.1 | D7: 10
A8: IEPS-007-01-01 | B8: Participación en eventos de comercialización ( Ferias / Ruedas de Negocios) | C8: 52.04427083 | D8: 10
A9: IEPS-003-01-01 | B9: Asesoría para la elaboración del Plan de Negocio EPS solidarios | C9: 72.275 | D9: 20
A10: IEPS-017-01-01 | B10: Asistencia técnica en procesos comerciales | C10: 77.6171875 | D10: 20
A11: IEPS-009-01-01 | B11: Fortalecimiento organizativo, administrativo y/o técnico a los actores de la EPS. | C11: 91.675 | D11: 20
A12: IEPS-016-01-01 | B12: Cofinanciamiento de Planes de Negocios para actores de la Economía Popular y Solidaria | C12: 388.75 | D12: 20

Sheet AUXILIAR COSTO ADMINISTRACIÓN
A2: TRÁMITE: | B2: Fortalecimiento organizativo, administrativo y/o técnico a los actores de la EPS.
A3: NO. | B3: ACTIVIDAD | C3: TIEMPO (HORAS)
A4: 1 | B4: Solicitar el servicio
A5: 2 | B5: Levantar in situ o en las oficinas el formulario de diagnóstico | C5: 1
A6: 3 | B6: Procesar los resultados del formulario de diagnóstico (tabulación) | C6: 3
A7: 4 | B7: Elaborar un informe con el resultado del diagnóstico | C7: 1
A8: 5 | B8: Ejecutar taller de trabajo para socialización de resultados y elaboración del plan de mejora | C8: 4
A9: 6 | B9: Socialización del plan de mejora para el fortalecimiento de la OEPS (Hoja de ruta y firma de carta de compromiso) | C9: 2
A10: 7 | B10: Convocar a las OEPS a las capacitaciones | C10: 0.5
A11: 8 | B11: Ejecutar capacitaciones de acuerdo a la necesidad de la organización (se propone un tiempo estimado y promedio considerando de 20 horas) | C11: 20
A12: 9 | B12: Elaborar y validar el informe de resultado por cada evento de capacitación ejecutada (registro de la capacitación en el cuadro de mando integral y eleboración del Informe Técnico) | C12: 5
A13: 10 | B13: Consolidar información y reportar en GPR | C13: 0.17
B14: SUMATORIA ACTIVIDADES | C14: =SUM(C4:C13) -> 36.67
A16: TRÁMITE: | B16: Atención especializada de información en Economía Popular y Solidaria.
A17: NO. | B17: ACTIVIDAD | C17: TIEMPO (HORAS)
A18: 1 | B18: Solicitar servicio de vinculación académica
A19: 2 | B19: Recibir y analizar el requerimiento | C19: 0.5
A20: 3 | B20: Registrar la ficha técnica del requerimiento
A21: 4 | B21: Preparar la información requerida (varia de acuerdo a la solicitud, para el ejercicio se considera un estimado de 8 horas) | C21: 8
A22: 5 | B22: Realizar y enviar oficio de contestación | C22: 0.17
A23: 6 | B23: Archivar y actualizar el registro del servicio atendido | C23: 0.17
B24: SUMATORIA ACTIVIDADES | C24: =SUM(C18:C23) -> 8.84
A26: TRÁMITE: | B26: Asesoría para la elaboración del Plan de Negocio EPS solidarios
A27: NO. | B27: ACTIVIDAD | C27: TIEMPO (HORAS)
A28: 1 | B28: Solicitar el servicio
A29: 2 | B29: Verificar parámetros (revisión de los requisitos) | C29: 0.5
A30: 3 | B30: Registrar OEPS | C30: 0.08
A31: 4 | B31: Socialización del formato del plan de negocio a la organización | C31: 8
A32: 5 | B32: Visitar OEPS y levantar información | C32: 4
A33: 6 | B33: Asesorar en la elaboración de planes de negocio solidarios | C33: 8
A34: 7 | B34: Revisar el plan de negocios por parte del Técnico | C34: 4
A35: 8 | B35: Revisar el plan de negocios por parte del Director Zonal | C35: 4
A36: 9 | B36: Comunicar y entregar respuesta del trámite a la organización | C36: 0.25
A37: 10 | B37: Cierre de registros | C37: 0.08
B38: SUMATORIA ACTIVIDADES | C38: =SUM(C28:C37) -> 28.91
A40: TRÁMITE: | B40: Cofinanciamiento de Planes de Negocios para actores de la Economía Popular y Solidaria
A41: NO. | B41: ACTIVIDAD | C41: TIEMPO (HORAS)
A42: 1 | B42: Solicitar el servicio de cofinanciamiento de planes de negocio –proyecto de la EPS por parte de la OEPS.
A43: 2 | B43: Recibir documentación de la OEPS. | C43: 0.1354166667
A44: 3 | B44: Si Cumple: Comunicar la necesidad de aprobación de planes de negocio – proyecto de la EPS. | C44: 1.583333333
A45: 4 | B45: Direccionar la revisión de habilitantes para los planes de negocio - proyecto de la EPS propuesto | C45: 0.03125
A46: 5 | B46: Si Cumple: Comunicar la necesidad de convocar a Comité Técnico de análisis y evaluación de planes de negocio –proyecto. | C46: 2
A47: 6 | B47: Convocar a Comité Técnico de análisis y evaluación de planes de negocio –proyecto de la EPS. | C47: 1
A48: 7 | B48: Revisar y evaluar planes de negocio solidario – proyecto de la EPS, incluido los habilitantes. | C48: 3
A49: 8 | B49: Si Cumple: Elaborar el memorando de viabilidad de planes de negocio –proyecto de la EPS y cumplimiento de la documentación habilitante. | C49: 0.125
A50: 9 | B50: Remitir documentación a la Coordinación General Técnica. | C50: 0.25
A51: 10 | B51: Gestionar la conformación del Comité de Análisis, Evaluación y Calificación de planes de negocio –proyecto de la EPS. | C51: 3
A52: 11 | B52: Solicitar la conformación del Comité de Análisis, Evaluación y Calificación de planes de negocio –proyecto de la EPS. | C52: 2
A53: 12 | B53: Realizar revisión, análisis, calificación y aprobación o negación de planes de negocio o proyecto de la EPS. | C53: 2
A54: 13 | B54: Si aprueba o niega los planes de negocio - proyecto: Aprobar o negar planes de negocio – proyecto de la EPS propuesto. | C54: 1
A55: 14 | B55: Comunicar aprobación o negación de planes de negocio – Proyecto de la EPS. | C55: 1
A56: 15 | B56: Solicitar documentación habilitante previo a la suscripción de convenio de cofinanciamiento. | C56: 1
A57: 16 | B57: Presentar documentos habilitantes para la suscripción de convenio de cofinanciamiento.
A58: 17 | B58: Si entregó dentro del plazo: Solicitar elaboración del convenio y remitir expediente. | C58: 2
A59: 18 | B59: Gestionar elaboración de Convenio de Cofinanciamiento. | C59: 1
A60: 19 | B60: Disponer la elaboración de convenio. | C60: 1
A61: 20 | B61: Elaborar y remitir el convenio. | C61: 5
A62: 21 | B62: Gestionar la suscripción del convenio de cofinanciamiento ante la OEPS. | C62: 3.666666667
A63: 22 | B63: Gestionar la suscripción del convenio de cofinanciamiento ante la Máxima Autoridad. | C63: 3
A64: 23 | B64: Suscribir convenio de cofinanciamiento, luego comunicar y solicitar ejecución del proyecto. | C64: 0.125
A65: 24 | B65: Solicitar la primera transferencia de recursos | C65: 0.75
A66: 25 | B66: Elaborar la solicitud de transferencia de recursos | C66: 2
A67: 26 | B67: Suscribir solicitud de transferencia de recursos. | C67: 1
A68: 27 | B68: Revisar documentación habilitante y solicitud de transferencia de recursos. | C68: 5
A69: 28 | B69: Notificar procedencia o no de la transferencia | C69: 0.125
A70: 29 | B70: Solicitar a OEPS el iniciar la ejecución del convenio de cofinanciamiento e indicaciones generales para el proceso de adquisición de bienes y servicios de acuerdo a la normativa legal vigente. | C70: 0.5833333333
A71: 30 | B71: Ejecutar el uso de recursos económicos en las actividades del planes de negocio –proyecto de la EPS.
A72: 31 | B72: Elaborar y enviar informes técnico y financiero de avance a la Dirección Técnica Zonal. | C72: 6.666666667
A73: 32 | B73: Elaborar informes técnico y financiero de seguimiento de la Dirección Técnica Zonal. | C73: 48
A74: 33 | B74: Realizar seguimiento y acompañamiento técnico, identificar el tipo de necesidades. | C74: 24
A75: 34 | B75: Existe necesidad de Desembolso subsecuente: Solicitar “desembolso subsecuente”.
A76: 35 | B76: Revisar el requerimiento de desembolso. | C76: 5.666666667
A77: 36 | B77: Si procede: Solicitar a la Coordinación General Técnica la gestión de desembolso de recursos. | C77: 2.333333333
A78: 37 | B78: Solicitar avales técnico y financiero. | C78: 0.125
A79: 38 | B79: Realizar análisis para determinar si procede aval técnico | C79: 2
A80: 39 | B80: Si procede emitir aval técnico: | C80: 0.5
A81: 40 | B81: Emitir aval técnico para el desembolso solicitado mediante memorando | C81: 0.5
A82: 41 | B82: Realizar análisis para determinar si procede el aval financiero de desembolso | C82: 2
A83: 42 | B83: Si procede emitir el aval financiero: Emitir el aval financiero mediante memorando | C83: 0.5
A84: 43 | B84: Solicitar autorización y gestión de desembolso a través de la CONAFIPS. | C84: 1
A85: 44 | B85: Elaborar la solicitud de transferencia de recursos económicos. | C85: 1
A86: 45 | B86: Existe la necesidad de cierre y liquidación del convenio: Solicitar el cierre y liquidación del convenio
A87: 46 | B87: Revisar información remitida por la OEPS junto los informes de cierre | C87: 4.666666667
A88: 47 | B88: Si guarda congruencia: Elaborar informes de cierre | C88: 2.666666667
A89: 48 | B89: Solicitar cierre del convenio desde la Dirección Técnica Zonal | C89: 0.75
A90: 49 | B90: Solicitar avales técnico y financiero para el cierre del convenio | C90: 0.25
A91: 50 | B91: Realizar análisis para determinar si procede el aval técnico | C91: 1
A92: 51 | B92: Si procede emitir el aval técnico¬: Elaborar aval técnico | C92: 0.5
A93: 52 | B93: Realizar el análisis para determinar si procede o no el aval financiero | C93: 2
A94: 53 | B94: Si: procede emitir el aval: Emitir aval financiero | C94: 0.5
A95: 54 | B95: Solicitar elaboración del acta de cierre y liquidación | C95: 0.25
A96: 55 | B96: Disponer elaboración de acta de cierre y liquidación | C96: 0.25
A97: 56 | B97: Elaborar acta de cierre y liquidación del convenio | C97: 5
A98: 57 | B98: Suscribir los ejemplares del acta de cierre y liquidación
B99: SUMATORIA ACTIVIDADES | C99: =SUM(C42:C98) -> 155.5
A101: TRÁMITE: | B101: Participación en eventos de comercialización ( Ferias / Ruedas de Negocios)
A102: NO. | B102: ACTIVIDAD | C102: TIEMPO (HORAS)
A103: 1 | B103: Solicitar servicio
A104: 2 | B104: Verificar el fortalecimiento de la organización | C104: 0.046875
A105: 3 | B105: Si cumplió: Registrar solicitud de la atención | C105: 0.01041666667
A106: 4 | B106: Revisar la planificación anual de espacios de comercialización | C106: 0.01041666667
A107: 5 | B107: Informar a la OEPS las fechas de espacios de comercialización planificados | C107: 0.03125
A108: 6 | B108: Solicitar aprobación para realizar espacios de comercialización | C108: 2.5
A109: 7 | B109: No existe: Aprobar la realización del espacio de comercialización | C109: 0.0625
A110: 8 | B110: Planificar ejecución del espacio de comercialización | C110: 0.25
A111: 9 | B111: Gestionar logística del evento | C111: 7.5
A112: 10 | B112: Identificar y convocar a los actores | C112: 1
A113: 11 | B113: Presentar requisitos
A114: 12 | B114: Proceso de selección de productos/servicios | C114: 3.5
A115: 13 | B115: Convocar a capacitación previa al evento | C115: 0.09375
A116: 14 | B116: Asistir a la capacitación previa al evento | C116: 0.0625
A117: 15 | B117: Capacitar y socializar las directrices del evento | C117: 0.25
A118: 16 | B118: Realizar el evento | C118: 1.75
A119: 17 | B119: Elaborar informe del evento | C119: 3
A120: 18 | B120: Reportar en el CMI | C120: 0.5
A121: 19 | B121: Si es correcto: Validar y archivar el informe | C121: 0.25
B122: SUMATORIA ACTIVIDADES | C122: =SUM(C103:C121) -> 20.81770833
A124: TRÁMITE: | B124: Asistencia técnica en procesos comerciales
A125: NO. | B125: ACTIVIDAD | C125: TIEMPO (HORAS)
A126: 1 | B126: Solicitar servicio
A127: 2 | B127: Verificar el fortalecimiento de la organización | C127: 0.046875
A128: 3 | B128: Si cumplió: Registrar solicitud de la atención | C128: 0.01041666667
A129: 4 | B129: No tiene una demanda: Identificar cliente potencial | C129: 3.5
A130: 5 | B130: Generar acercamiento | C130: 2
A131: 6 | B131: Citar a reunión | C131: 0.53125
A132: 7 | B132: Confirmar asistencia a reunión | C132: 1
A133: 8 | B133: Asistir a la reunión para presentación de oferta EPS y servicios del IEPS | C133: 0.75
A134: 9 | B134: Solicitar requerimiento específico | C134: 0.02083333333
A135: 10 | B135: Comunicar el requerimiento específico | C135: 4
A136: 11 | B136: Identificar a la/las OEPS/UEP proveedor/as con base al requerimiento | C136: 1.5
A137: 12 | B137: Recibir asesoramiento de articulación comercial | C137: 7
A138: 13 | B138: Enviar la oferta del producto/ servicio | C138: 1
A139: 14 | B139: Si está interesado: Contactar al cliente para negociación | C139: 1
A140: 15 | B140: Realizar seguimiento de negociación | C140: 8.5
A141: 16 | B141: Si fue concretado: Registrar resultados | C141: 0.1875
B142: SUMATORIA ACTIVIDADES | C142: =SUM(C126:C141) -> 31.046875
A144: TRÁMITE: | B144: Asesoramiento en el Proceso de compra pública inclusiva a Instituciones Públicas
A145: NO. | B145: ACTIVIDAD | C145: TIEMPO (HORAS)
A146: 1 | B146: Solicitar el servicio
A147: 2 | B147: Programar una capacitación a funcionarios | C147: 1
A148: 3 | B148: Capacitación a funcionarios sobre compras pública | C148: 3
A149: 4 | B149: Acompañamiento en el procesos de compras públicas | C149: 2
A150: 5 | B150: Registrar el servicio brindado | C150: 0.25
B151: SUMATORIA ACTIVIDADES | C151: =SUM(C146:C150) -> 6.25
A153: TRÁMITE: | B153: Asesoramiento en el Proceso de Compra Pública Inclusiva a Organizaciones EPS y/o Unidades EP.
A154: NO. | B154: ACTIVIDAD | C154: TIEMPO (HORAS)
A155: 1 | B155: Solicitud de asesoría en procesos de contratación pública
A156: 2 | B156: Explicación de la necesidad de compra publica
A157: 3 | B157: Asesoria en compra publica | C157: 3
A158: 4 | B158: Registro del servicio | C158: 0.33
A159: 5 | B159: Seguimiento de adjudicación del proceso en el portal de contratación pública (solicura copia de compra) | C159: 2
A160: 6 | B160: Registrar monto de compra en CMI | C160: 0.17
B161: SUMATORIA ACTIVIDADES | C161: =SUM(C155:C160) -> 5.5

Sheet TIEMPO DE RESPUESTA
A1: PRIORIZACIÓN DE TRÁMITES ADMINISTRATIVOS
A2: TIEMPO DE RESPUESTA
A4: IDENTIFICADOR | B4: TRÁMITE | C4: TIEMPO RESPUESTA (horas laborables) | D4: PUNTUACIÓN
A5: IEPS-016-01-01 | B5: Cofinanciamiento de Planes de Negocios para actores de la Economía Popular y Solidaria | C5: 2896 | D5: 30
A6: IEPS-012-01-01 | B6: Atención especializada de información en Economía Popular y Solidaria. | C6: 16 | D6: 0
A7: IEPS-005-01-01 | B7: Asesoramiento en el Proceso de compra pública inclusiva a Instituciones Públicas | C7: 160 | D7: 30
A8: IEPS-017-01-01 | B8: Asistencia técnica en procesos comerciales | C8: 256 | D8: 30
A9: IEPS-003-01-01 | B9: Asesoría para la elaboración del Plan de Negocio EPS solidarios | C9: 320 | D9: 30
A10: IEPS-007-01-01 | B10: Participación en eventos de comercialización ( Ferias / Ruedas de Negocios) | C10: 32 | D10: 0
A11: IEPS-006-01-01 | B11: Asesoramiento en el Proceso de Compra Pública Inclusiva a Organizaciones EPS y/o Unidades EP. | C11: 40 | D11: 0
A12: IEPS-009-01-01 | B12: Fortalecimiento organizativo, administrativo y/o técnico a los actores de la EPS. | C12: 34 | D12: 0

Sheet CANAL ATENCIÓN
A1: PRIORIZACIÓN DE TRÁMITES ADMINISTRATIVOS
A2: CANAL DE ATENCIÓN
I3: Totalmente en Línea | L3: 0
A4: IDENTIFICADOR | B4: TRÁMITE | C4: CANAL ATENCIÓN | D4: PUNTUACIÓN | I4: No se completa totalmente en línea. | L4: 10
A5: IEPS-016-01-01 | B5: Cofinanciamiento de Planes de Negocios para actores de la Economía Popular y Solidaria | C5: No se completa totalmente en línea. | D5: =IF(ISBLANK(C5),"",IF(C5="Totalmente en línea",0,IF(C5="Inicia en línea",6,10))) -> 10
A6: IEPS-012-01-01 | B6: Atención especializada de información en Economía Popular y Solidaria. | C6: No se completa totalmente en línea. | D6: =IF(ISBLANK(C6),"",IF(C6="Totalmente en línea",0,IF(C6="Inicia en línea",6,10))) -> 10
A7: IEPS-005-01-01 | B7: Asesoramiento en el Proceso de compra pública inclusiva a Instituciones Públicas | C7: No se completa totalmente en línea. | D7: 10
A8: IEPS-017-01-01 | B8: Asistencia técnica en procesos comerciales | C8: No se completa totalmente en línea. | D8: 10
A9: IEPS-003-01-01 | B9: Asesoría para la elaboración del Plan de Negocio EPS solidarios | C9: No se completa totalmente en línea. | D9: 10
A10: IEPS-007-01-01 | B10: Participación en eventos de comercialización ( Ferias / Ruedas de Negocios) | C10: No se completa totalmente en línea. | D10: =IF(ISBLANK(C10),"",IF(C10="Totalmente en línea",0,IF(C10="Inicia en línea",6,10))) -> 10
A11: IEPS-006-01-01 | B11: Asesoramiento en el Proceso de Compra Pública Inclusiva a Organizaciones EPS y/o Unidades EP. | C11: No se completa totalmente en línea. | D11: 10
A12: IEPS-009-01-01 | B12: Fortalecimiento organizativo, administrativo y/o técnico a los actores de la EPS. | C12: No se completa totalmente en línea. | D12: 10

Sheet RESUMEN
C1: BÁSICOS | H1: ADICIONALES
A2: ID trámite | B2: Nombre del trámite | C2: Demanda | D2: Quejas | E2: Costo para administración | F2: Tiempo de respuesta | G2: Canal de atención | H2: Necesidades ciudadanas | J2: Susceptibilidad a corrupción | L2: Volumen de devoluciones | N2: PUNTAJE TOTAL
H3: Criterio | I3: Puntuación | J3: Criterio | K3: Puntuación | L3: Criterio | M3: Puntuación | U3: demanda | V3: 0 | W3: 3 | X3: 6 | Y3: 10
A4: IEPS-016-01-01 | B4: Cofinanciamiento de Planes de Negocios para actores de la Economía Popular y Solidaria | C4: 0 | D4: 0 | E4: 20 | F4: 30 | G4: 10 | H4: SI | I4: =IF(H4="SI",5,0) -> 5 | J4: NO | K4: =IF(J4="SI",10,0) -> 0 | L4: NO | M4: =IF(L4="SI",5,0) -> 0 | N4: =SUM(C4:G4,I4,K4,M4) -> 65 | U4: quejas | V4: 0 | W4: 4 | X4: 10
A5: IEPS-012-01-01 | B5: Atención especializada de información en Economía Popular y Solidaria. | C5: 3 | D5: 0 | E5: 10 | F5: 0 | G5: 10 | H5: SI | I5: =IF(H5="SI",5,0) -> 5 | J5: NO | K5: =IF(J5="SI",10,0) -> 0 | L5: NO | M5: =IF(L5="SI",5,0) -> 0 | N5: =SUM(C5:G5,I5,K5,M5) -> 28 | U5: cpa | V5: 5 | W5: 10 | X5: 20
A6: IEPS-005-01-01 | B6: Asesoramiento en el Proceso de compra pública inclusiva a Instituciones Públicas | C6: 3 | D6: 0 | E6: 5 | F6: 30 | G6: 10 | H6: SI | I6: 5 | J6: NO | K6: 0 | L6: NO | M6: 0 | N6: 53 | U6: tr | V6: 0 | W6: 30
A7: IEPS-017-01-01 | B7: Asistencia técnica en procesos comerciales | C7: 6 | D7: 0 | E7: 20 | F7: 30 | G7: 10 | H7: SI | I7: 5 | J7: NO | K7: 0 | L7: NO | M7: 0 | N7: 71 | U7: ca | V7: 0 | W7: 10
A8: IEPS-003-01-01 | B8: Asesoría para la elaboración del Plan de Negocio EPS solidarios | C8: 6 | D8: 0 | E8: 20 | F8: 30 | G8: 10 | H8: SI | I8: 5 | J8: NO | K8: 0 | L8: NO | M8: 0 | N8: 71 | V8: SI | W8: NO
A9: IEPS-007-01-01 | B9: Participación en eventos de comercialización ( Ferias / Ruedas de Negocios) | C9: 10 | D9: 0 | E9: 10 | F9: 0 | G9: 10 | H9: SI | I9: 5 | J9: NO | K9: 0 | L9: NO | M9: 0 | N9: 35
A10: IEPS-006-01-01 | B10: Asesoramiento en el Proceso de Compra Pública Inclusiva a Organizaciones EPS y/o Unidades EP. | C10: 10 | D10: 0 | E10: 5 | F10: 0 | G10: 10 | H10: SI | I10: 5 | J10: NO | K10: 0 | L10: NO | M10: 0 | N10: 30
A11: IEPS-009-01-01 | B11: Fortalecimiento organizativo, administrativo y/o técnico a los actores de la EPS. | C11: 10 | D11: 0 | E11: 20 | F11: 0 | G11: 10 | H11: SI | I11: 5 | J11: NO | K11: 0 | L11: NO | M11: 0 | N11: 45
